[Event "Early-Titled-Tuesday-Blitz-September-05-2023"]
[Site "Chess.com"]
[Date "2023.09.05"]
[Round "2"]
[White "The_Princess_Moon"]
[Black "the-gambler"]
[Result "0-1"]
[WhiteElo "2252"]
[BlackElo "2598"]
[TimeControl "180+1"]
[EndTime "8:17:05 PDT"]
[Termination "the-gambler won by checkmate"]

1. e4 {[%clk 0:03:00.9]} 1... Nf6 {[%clk 0:02:59]} 2. e5 {[%clk 0:03:00.2]} 2...
Nd5 {[%clk 0:02:59.1]} 3. Nc3 {[%clk 0:03:01.1]} 3... Nxc3 {[%clk 0:02:58.6]} 4.
bxc3 {[%clk 0:03:02]} 4... d6 {[%clk 0:02:58.9]} 5. exd6 {[%clk 0:03:00.9]} 5...
exd6 {[%clk 0:02:58.1]} 6. d4 {[%clk 0:03:01.8]} 6... Be7 {[%clk 0:02:58.2]} 7.
Nf3 {[%clk 0:03:01.5]} 7... O-O {[%clk 0:02:57.8]} 8. Bd3 {[%clk 0:03:02]} 8...
Bg4 {[%clk 0:02:57.3]} 9. h3 {[%clk 0:03:02.3]} 9... Bh5 {[%clk 0:02:57.1]} 10.
O-O {[%clk 0:03:02.3]} 10... Nd7 {[%clk 0:02:55.7]} 11. Rb1 {[%clk 0:03:01.8]}
11... Nb6 {[%clk 0:02:53.8]} 12. c4 {[%clk 0:02:47.7]} 12... Bg6 {[%clk
0:02:52.5]} 13. c3 {[%clk 0:02:42.5]} 13... Nxc4 {[%clk 0:02:44.4]} 14. Rxb7
{[%clk 0:02:22.2]} 14... Nb6 {[%clk 0:02:42.6]} 15. a4 {[%clk 0:02:10.2]} 15...
Nxa4 {[%clk 0:02:31.4]} 16. Bxg6 {[%clk 0:02:05.7]} 16... Nxc3 {[%clk
0:02:29.1]} 17. Bxh7+ {[%clk 0:02:03.3]} 17... Kxh7 {[%clk 0:02:27.5]} 18. Qc2+
{[%clk 0:02:03.2]} 18... Kg8 {[%clk 0:02:25.2]} 19. Qxc3 {[%clk 0:02:03.2]}
19... c5 {[%clk 0:02:23.1]} 20. Re1 {[%clk 0:02:00.1]} 20... Bf6 {[%clk
0:02:22]} 21. Qc4 {[%clk 0:01:55.2]} 21... cxd4 {[%clk 0:02:11]} 22. Nxd4 {[%clk
0:01:53.4]} 22... Rc8 {[%clk 0:02:08.9]} 23. Nc6 {[%clk 0:01:27.4]} 23... d5
{[%clk 0:02:08.2]} 24. Qa4 {[%clk 0:01:08.8]} 24... Qd6 {[%clk 0:01:58.4]} 25.
Bf4 {[%clk 0:01:07.9]} 25... Qxc6 {[%clk 0:01:55.5]} 26. Qxa7 {[%clk 0:01:05.4]}
26... Rfe8 {[%clk 0:01:34.7]} 27. Rc1 {[%clk 0:00:50.1]} 27... Qe6 {[%clk
0:01:19.6]} 28. Rxc8 {[%clk 0:00:42.3]} 28... Rxc8 {[%clk 0:01:20.1]} 29. Rb8
{[%clk 0:00:37.8]} 29... Rxb8 {[%clk 0:01:20]} 30. Qxb8+ {[%clk 0:00:36.6]}
30... Kh7 {[%clk 0:01:20.9]} 31. Qb1+ {[%clk 0:00:35.1]} 31... g6 {[%clk
0:01:18.6]} 32. Qd3 {[%clk 0:00:30]} 32... d4 {[%clk 0:01:17.3]} 33. Bg3 {[%clk
0:00:19.3]} 33... Kg7 {[%clk 0:01:15.2]} 34. Bf4 {[%clk 0:00:18.3]} 34... Qe1+
{[%clk 0:01:10.5]} 35. Kh2 {[%clk 0:00:17.2]} 35... Qxf2 {[%clk 0:01:08.4]} 36.
Bg3 {[%clk 0:00:11.9]} 36... Qb2 {[%clk 0:01:04.7]} 37. Bf4 {[%clk 0:00:10.5]}
37... Qb7 {[%clk 0:00:57.1]} 38. Qd2 {[%clk 0:00:10]} 38... Qe4 {[%clk
0:00:56.4]} 39. Bh6+ {[%clk 0:00:09.6]} 39... Kh7 {[%clk 0:00:56]} 40. Bf8
{[%clk 0:00:06.4]} 40... Be5+ {[%clk 0:00:51]} 41. Kg1 {[%clk 0:00:05.9]} 41...
Bf4 {[%clk 0:00:48.8]} 42. Qa2 {[%clk 0:00:04.2]} 42... Qe1# {[%clk 0:00:46.5]}
0-1

[Event "Early-Titled-Tuesday-Blitz-September-05-2023"]
[Site "Chess.com"]
[Date "2023.09.05"]
[Round "2"]
[White "emirgulbeyaz"]
[Black "GaalZsoka"]
[Result "1-0"]
[WhiteElo "2313"]
[BlackElo "2460"]
[TimeControl "180+1"]
[EndTime "8:17:07 PDT"]
[Termination "emirgulbeyaz won by resignation"]

1. e4 {[%clk 0:02:54.7]} 1... e5 {[%clk 0:02:56.1]} 2. Nf3 {[%clk 0:02:53.4]}
2... Nc6 {[%clk 0:02:56.4]} 3. Bc4 {[%clk 0:02:52.7]} 3... d6 {[%clk 0:02:28.7]}
4. d4 {[%clk 0:02:50.3]} 4... exd4 {[%clk 0:02:24]} 5. Nxd4 {[%clk 0:02:49.8]}
5... Nf6 {[%clk 0:02:18.1]} 6. Nc3 {[%clk 0:02:42.8]} 6... Nxd4 {[%clk 0:02:00]}
7. Qxd4 {[%clk 0:02:39.5]} 7... Be6 {[%clk 0:01:58.8]} 8. Bf4 {[%clk 0:02:36.7]}
8... Be7 {[%clk 0:01:45.9]} 9. O-O-O {[%clk 0:02:35.3]} 9... O-O {[%clk
0:01:40.6]} 10. f3 {[%clk 0:02:35.3]} 10... Qc8 {[%clk 0:01:40.2]} 11. g4 {[%clk
0:02:33.4]} 11... a6 {[%clk 0:01:35.5]} 12. g5 {[%clk 0:02:32.1]} 12... Nh5
{[%clk 0:01:35.2]} 13. Be3 {[%clk 0:02:32.5]} 13... b5 {[%clk 0:01:30.3]} 14.
Bd5 {[%clk 0:02:28.2]} 14... c6 {[%clk 0:01:26.3]} 15. Bxe6 {[%clk 0:02:20.5]}
15... fxe6 {[%clk 0:01:26.9]} 16. Rhf1 {[%clk 0:02:02.5]} 16... e5 {[%clk
0:01:26.4]} 17. Qd3 {[%clk 0:02:01.8]} 17... Qe6 {[%clk 0:01:25]} 18. Kb1 {[%clk
0:02:01.5]} 18... a5 {[%clk 0:01:23.2]} 19. Ne2 {[%clk 0:02:01.9]} 19... a4
{[%clk 0:01:15]} 20. Ng3 {[%clk 0:02:00.3]} 20... g6 {[%clk 0:01:12.6]} 21. Nxh5
{[%clk 0:01:59.8]} 21... gxh5 {[%clk 0:01:13]} 22. f4 {[%clk 0:02:00.4]} 22...
exf4 {[%clk 0:01:07.1]} 23. Bxf4 {[%clk 0:02:01.3]} 23... Rad8 {[%clk
0:00:59.8]} 24. Qg3 {[%clk 0:01:53.3]} 24... Qg6 {[%clk 0:00:56]} 25. h4 {[%clk
0:01:51]} 25... b4 {[%clk 0:00:55.4]} 26. Qd3 {[%clk 0:01:35.2]} 26... a3 {[%clk
0:00:52.3]} 27. Qc4+ {[%clk 0:01:32.9]} 27... Qf7 {[%clk 0:00:37.2]} 28. Qxc6
{[%clk 0:01:26.2]} 28... axb2 {[%clk 0:00:32.2]} 29. Qd5 {[%clk 0:01:20.8]}
29... Qxd5 {[%clk 0:00:25.7]} 30. exd5 {[%clk 0:01:21.7]} 30... Rf5 {[%clk
0:00:24.6]} 31. Be3 {[%clk 0:01:15]} 31... Rdf8 {[%clk 0:00:24.8]} 32. Rxf5
{[%clk 0:01:14.4]} 32... Rxf5 {[%clk 0:00:25.7]} 33. Kxb2 {[%clk 0:01:15.1]}
33... Re5 {[%clk 0:00:21]} 34. Rd3 {[%clk 0:01:11]} 34... Re4 {[%clk 0:00:20.5]}
35. Bf2 {[%clk 0:01:11.5]} 35... Bf8 {[%clk 0:00:20]} 36. Kb3 {[%clk 0:01:11.2]}
36... Bg7 {[%clk 0:00:19.6]} 37. Re3 {[%clk 0:00:54.2]} 37... Rxe3+ {[%clk
0:00:15.1]} 38. Bxe3 {[%clk 0:00:55.1]} 38... Bc3 {[%clk 0:00:15.5]} 39. a4
{[%clk 0:00:54.2]} 39... bxa3 {[%clk 0:00:05.1]} 40. Kxc3 {[%clk 0:00:53.9]}
40... a2 {[%clk 0:00:04.9]} 41. Kb2 {[%clk 0:00:54.8]} 41... Kf7 {[%clk
0:00:05.2]} 42. Kxa2 {[%clk 0:00:52.9]} 42... Kg6 {[%clk 0:00:06.1]} 43. Bf4
{[%clk 0:00:53.1]} 43... Kf5 {[%clk 0:00:07]} 44. Bxd6 {[%clk 0:00:53.9]} 1-0

[Event "Early-Titled-Tuesday-Blitz-September-05-2023"]
[Site "Chess.com"]
[Date "2023.09.05"]
[Round "2"]
[White "Shivananda1964"]
[Black "C_K_G"]
[Result "1-0"]
[WhiteElo "2443"]
[BlackElo "2064"]
[TimeControl "180+1"]
[EndTime "8:17:07 PDT"]
[Termination "Shivananda1964 won on time"]

1. e4 {[%clk 0:02:55.9]} 1... c5 {[%clk 0:03:00]} 2. Nf3 {[%clk 0:02:54]} 2...
d6 {[%clk 0:03:00.2]} 3. Bc4 {[%clk 0:02:53.1]} 3... e6 {[%clk 0:02:59.8]} 4. d3
{[%clk 0:02:52.3]} 4... Nc6 {[%clk 0:02:58]} 5. a3 {[%clk 0:02:51.4]} 5... Nf6
{[%clk 0:02:58.2]} 6. O-O {[%clk 0:02:49.3]} 6... Be7 {[%clk 0:02:57.6]} 7. Ba2
{[%clk 0:02:49]} 7... O-O {[%clk 0:02:57.2]} 8. Nc3 {[%clk 0:02:44.2]} 8... Qc7
{[%clk 0:02:56.3]} 9. Ng5 {[%clk 0:02:41.2]} 9... Nd4 {[%clk 0:02:43.1]} 10. f4
{[%clk 0:02:40.7]} 10... a6 {[%clk 0:02:31.9]} 11. Ne2 {[%clk 0:02:39.4]} 11...
Nxe2+ {[%clk 0:02:27.5]} 12. Qxe2 {[%clk 0:02:39.1]} 12... b5 {[%clk 0:02:24.4]}
13. Bd2 {[%clk 0:02:32.5]} 13... h6 {[%clk 0:02:23.5]} 14. Nh3 {[%clk
0:02:30.1]} 14... Bb7 {[%clk 0:02:22.2]} 15. f5 {[%clk 0:02:25.9]} 15... exf5
{[%clk 0:02:11.1]} 16. Rxf5 {[%clk 0:02:23]} 16... c4 {[%clk 0:02:01.5]} 17.
Raf1 {[%clk 0:02:19.9]} 17... d5 {[%clk 0:01:56.2]} 18. e5 {[%clk 0:02:14.5]}
18... Nh7 {[%clk 0:01:35.4]} 19. d4 {[%clk 0:02:13.9]} 19... Bc8 {[%clk
0:01:31]} 20. R5f4 {[%clk 0:01:37.1]} 20... Be6 {[%clk 0:01:24.1]} 21. c3 {[%clk
0:01:37]} 21... a5 {[%clk 0:01:23.2]} 22. Bb1 {[%clk 0:01:36.9]} 22... b4 {[%clk
0:01:13]} 23. Qh5 {[%clk 0:01:29.6]} 23... bxa3 {[%clk 0:01:06.3]} 24. bxa3
{[%clk 0:01:29.3]} 24... Rab8 {[%clk 0:01:02.5]} 25. R4f3 {[%clk 0:00:57.8]}
25... Rb2 {[%clk 0:00:28.5]} 26. Bxh6 {[%clk 0:00:50.6]} 26... Rxb1 {[%clk
0:00:20.3]} 27. Rxb1 {[%clk 0:00:46.6]} 27... gxh6 {[%clk 0:00:20.3]} 28. Qxh6
{[%clk 0:00:41.7]} 28... Kh8 {[%clk 0:00:20.3]} 29. Rbf1 {[%clk 0:00:33.6]}
29... Rg8 {[%clk 0:00:19.8]} 30. Rxf7 {[%clk 0:00:27.5]} 30... Bxf7 {[%clk
0:00:15.5]} 31. Rxf7 {[%clk 0:00:27.1]} 1-0

[Event "Early-Titled-Tuesday-Blitz-September-05-2023"]
[Site "Chess.com"]
[Date "2023.09.05"]
[Round "2"]
[White "Rodalquilar"]
[Black "hongnhung1234"]
[Result "0-1"]
[WhiteElo "2783"]
[BlackElo "2538"]
[TimeControl "180+1"]
[EndTime "8:17:08 PDT"]
[Termination "hongnhung1234 won by resignation"]

1. d4 {[%clk 0:03:00.9]} 1... f5 {[%clk 0:02:59.7]} 2. Nf3 {[%clk 0:02:59.5]}
2... Nf6 {[%clk 0:02:59.8]} 3. g3 {[%clk 0:02:59.3]} 3... g6 {[%clk 0:02:57.5]}
4. Bg2 {[%clk 0:02:59.3]} 4... Bg7 {[%clk 0:02:57.3]} 5. O-O {[%clk 0:02:58.8]}
5... O-O {[%clk 0:02:57.1]} 6. Nbd2 {[%clk 0:02:59]} 6... d6 {[%clk 0:02:56.6]}
7. Re1 {[%clk 0:02:58.6]} 7... Nc6 {[%clk 0:02:50.3]} 8. e4 {[%clk 0:02:58.3]}
8... fxe4 {[%clk 0:02:50]} 9. Nxe4 {[%clk 0:02:57.3]} 9... Nxe4 {[%clk
0:02:49.8]} 10. Rxe4 {[%clk 0:02:58.2]} 10... Bf5 {[%clk 0:02:50]} 11. Re2
{[%clk 0:02:58.3]} 11... Bg4 {[%clk 0:02:49.3]} 12. Re4 {[%clk 0:02:04.2]} 12...
Bxf3 {[%clk 0:02:00.4]} 13. Bxf3 {[%clk 0:02:03.4]} 13... d5 {[%clk 0:01:49.4]}
14. Rh4 {[%clk 0:01:26.8]} 14... Nxd4 {[%clk 0:01:09.6]} 15. Bg2 {[%clk
0:01:20.8]} 15... Nf5 {[%clk 0:00:31.7]} 16. Qxd5+ {[%clk 0:01:10.6]} 16... e6
{[%clk 0:00:26.5]} 17. Qxe6+ {[%clk 0:00:46.5]} 17... Kh8 {[%clk 0:00:26.5]} 18.
Re4 {[%clk 0:00:46]} 18... Qd1+ {[%clk 0:00:20.8]} 19. Re1 {[%clk 0:00:45]}
19... Qxc2 {[%clk 0:00:21.7]} 20. Be4 {[%clk 0:00:16.3]} 20... Qxf2+ {[%clk
0:00:18.1]} 21. Kxf2 {[%clk 0:00:15.3]} 21... Nd4+ {[%clk 0:00:18.7]} 22. Kg2
{[%clk 0:00:13]} 22... Nxe6 {[%clk 0:00:19.2]} 23. Bxb7 {[%clk 0:00:12.9]} 23...
Rae8 {[%clk 0:00:18.8]} 24. Bc6 {[%clk 0:00:09.4]} 24... Re7 {[%clk 0:00:15.7]}
25. Bg5 {[%clk 0:00:09.4]} 25... Bf6 {[%clk 0:00:13.9]} 26. Bxf6+ {[%clk
0:00:08.9]} 26... Rxf6 {[%clk 0:00:14.8]} 27. Re2 {[%clk 0:00:09.3]} 27... Nf4+
{[%clk 0:00:14.8]} 0-1

[Event "Early-Titled-Tuesday-Blitz-September-05-2023"]
[Site "Chess.com"]
[Date "2023.09.05"]
[Round "2"]
[White "Journey_to_GrandMaster_YT"]
[Black "kleinebeer98"]
[Result "1-0"]
[WhiteElo "2603"]
[BlackElo "2849"]
[TimeControl "180+1"]
[EndTime "8:17:12 PDT"]
[Termination "Journey_to_GrandMaster_YT won by resignation"]

1. d4 {[%clk 0:03:00]} 1... Nf6 {[%clk 0:02:50]} 2. Nf3 {[%clk 0:03:00.1]} 2...
a6 {[%clk 0:02:49.3]} 3. c4 {[%clk 0:02:46.5]} 3... b5 {[%clk 0:02:49.5]} 4.
cxb5 {[%clk 0:02:44.1]} 4... axb5 {[%clk 0:02:50.4]} 5. e3 {[%clk 0:02:43.1]}
5... b4 {[%clk 0:02:51]} 6. Bd3 {[%clk 0:02:42.3]} 6... e6 {[%clk 0:02:48]} 7.
O-O {[%clk 0:02:39.4]} 7... Bb7 {[%clk 0:02:43.7]} 8. Nbd2 {[%clk 0:02:39.1]}
8... c5 {[%clk 0:02:39.2]} 9. dxc5 {[%clk 0:02:32.4]} 9... Bxc5 {[%clk
0:02:40.1]} 10. Nb3 {[%clk 0:02:31.9]} 10... Be7 {[%clk 0:02:39.9]} 11. Bd2
{[%clk 0:02:28.1]} 11... O-O {[%clk 0:02:38]} 12. Nfd4 {[%clk 0:02:14.5]} 12...
Nc6 {[%clk 0:02:27.7]} 13. Nxc6 {[%clk 0:01:45.9]} 13... Bxc6 {[%clk 0:02:28.6]}
14. Nd4 {[%clk 0:01:46]} 14... Be4 {[%clk 0:02:26.5]} 15. Bxe4 {[%clk
0:01:42.5]} 15... Nxe4 {[%clk 0:02:27.4]} 16. Qc2 {[%clk 0:01:42.3]} 16... f5
{[%clk 0:02:24.7]} 17. Rfc1 {[%clk 0:01:40.3]} 17... Bf6 {[%clk 0:02:21]} 18.
Bxb4 {[%clk 0:01:37.8]} 18... Rf7 {[%clk 0:02:08.6]} 19. Qc7 {[%clk 0:01:28.3]}
19... Qe8 {[%clk 0:01:56.2]} 20. f3 {[%clk 0:01:18.9]} 20... d5 {[%clk
0:01:32.7]} 21. Qc6 {[%clk 0:01:16.1]} 21... Bxd4 {[%clk 0:01:25.8]} 22. Qxe8+
{[%clk 0:01:12.3]} 22... Rxe8 {[%clk 0:01:24.9]} 23. exd4 {[%clk 0:01:13.2]}
23... Nf6 {[%clk 0:01:25.8]} 24. Bc5 {[%clk 0:01:07.3]} 24... g5 {[%clk
0:01:21.3]} 25. a4 {[%clk 0:01:06.5]} 25... g4 {[%clk 0:01:22.2]} 26. a5 {[%clk
0:01:03]} 26... gxf3 {[%clk 0:01:22]} 27. gxf3 {[%clk 0:01:03.9]} 27... Ra8
{[%clk 0:01:12.8]} 28. a6 {[%clk 0:01:03.6]} 28... Nd7 {[%clk 0:01:13.5]} 29. b4
{[%clk 0:01:03.4]} 29... e5 {[%clk 0:01:08.1]} 30. b5 {[%clk 0:01:02]} 30... Rf6
{[%clk 0:01:04.7]} 31. dxe5 {[%clk 0:00:58.9]} 31... Nxe5 {[%clk 0:01:05.4]} 32.
b6 {[%clk 0:00:54.9]} 32... Nxf3+ {[%clk 0:01:03]} 33. Kf2 {[%clk 0:00:54.5]}
33... Nd2 {[%clk 0:01:02.4]} 34. b7 {[%clk 0:00:52.6]} 34... Ne4+ {[%clk
0:01:00.4]} 35. Kf3 {[%clk 0:00:45.3]} 35... Re8 {[%clk 0:00:57.9]} 36. a7
{[%clk 0:00:23.7]} 36... Ng5+ {[%clk 0:00:55]} 37. Kg2 {[%clk 0:00:18.7]} 37...
Re2+ {[%clk 0:00:55.5]} 38. Bf2 {[%clk 0:00:19.1]} 38... Rg6 {[%clk 0:00:53.3]}
39. b8=Q+ {[%clk 0:00:18.8]} 39... Kg7 {[%clk 0:00:54.1]} 40. Qb7+ {[%clk
0:00:16.1]} 40... Kh6 {[%clk 0:00:53]} 41. Kf1 {[%clk 0:00:13.3]} 41... Rxf2+
{[%clk 0:00:47.3]} 42. Kxf2 {[%clk 0:00:13.3]} 42... Ne4+ {[%clk 0:00:48]} 43.
Ke3 {[%clk 0:00:13.6]} 43... Nd6 {[%clk 0:00:47.9]} 44. a8=Q {[%clk 0:00:12.7]}
44... f4+ {[%clk 0:00:47]} 45. Kxf4 {[%clk 0:00:12.5]} 1-0

[Event "Early-Titled-Tuesday-Blitz-September-05-2023"]
[Site "Chess.com"]
[Date "2023.09.05"]
[Round "2"]
[White "Orlov_Oleg"]
[Black "Aisen1011"]
[Result "1-0"]
[WhiteElo "2577"]
[BlackElo "2386"]
[TimeControl "180+1"]
[EndTime "8:17:12 PDT"]
[Termination "Orlov_Oleg won on time"]

1. e4 {[%clk 0:03:00.9]} 1... e5 {[%clk 0:03:00]} 2. Nf3 {[%clk 0:03:01.2]} 2...
Nc6 {[%clk 0:03:00.4]} 3. Bb5 {[%clk 0:03:01.7]} 3... a6 {[%clk 0:03:00.7]} 4.
Ba4 {[%clk 0:03:02.3]} 4... Nge7 {[%clk 0:03:00.9]} 5. c3 {[%clk 0:02:59.2]}
5... g6 {[%clk 0:03:00.8]} 6. d4 {[%clk 0:02:58.7]} 6... exd4 {[%clk 0:03:01.3]}
7. cxd4 {[%clk 0:02:59.1]} 7... b5 {[%clk 0:02:59.8]} 8. Bb3 {[%clk 0:02:54.7]}
8... Bg7 {[%clk 0:02:59.5]} 9. O-O {[%clk 0:02:51.3]} 9... O-O {[%clk
0:02:57.9]} 10. d5 {[%clk 0:02:50.8]} 10... Na5 {[%clk 0:02:57.6]} 11. Bc2
{[%clk 0:02:51.4]} 11... d6 {[%clk 0:02:56.6]} 12. Re1 {[%clk 0:02:41.7]} 12...
c5 {[%clk 0:02:49.1]} 13. dxc6 {[%clk 0:02:37.7]} 13... Nexc6 {[%clk 0:02:48.8]}
14. Bg5 {[%clk 0:02:21.4]} 14... Qc7 {[%clk 0:02:28]} 15. Nc3 {[%clk 0:02:20.4]}
15... Be6 {[%clk 0:02:26]} 16. Bd3 {[%clk 0:01:42]} 16... h6 {[%clk 0:02:22.4]}
17. Bh4 {[%clk 0:01:37.5]} 17... Nc4 {[%clk 0:02:13.6]} 18. Bxc4 {[%clk
0:01:31.6]} 18... Bxc4 {[%clk 0:02:13.2]} 19. Rc1 {[%clk 0:01:29.7]} 19... Qa5
{[%clk 0:01:15.3]} 20. Nd2 {[%clk 0:01:08.8]} 20... Be6 {[%clk 0:01:10.7]} 21.
Nb3 {[%clk 0:01:04.7]} 21... Bxb3 {[%clk 0:01:07.5]} 22. Qxb3 {[%clk 0:01:05.3]}
22... Nd4 {[%clk 0:00:55.2]} 23. Qd5 {[%clk 0:01:01.4]} 23... Rac8 {[%clk
0:00:44.1]} 24. Be7 {[%clk 0:00:47.2]} 24... Rfe8 {[%clk 0:00:44.2]} 25. Bxd6
{[%clk 0:00:44.8]} 25... b4 {[%clk 0:00:43.7]} 26. Qxa5 {[%clk 0:00:43.4]} 26...
bxc3 {[%clk 0:00:40.9]} 27. Rxc3 {[%clk 0:00:37.1]} 27... Nc6 {[%clk 0:00:06.8]}
28. Qxa6 {[%clk 0:00:36.6]} 28... Bxc3 {[%clk 0:00:05.8]} 29. bxc3 {[%clk
0:00:37.5]} 29... Red8 {[%clk 0:00:02.5]} 30. e5 {[%clk 0:00:37.9]} 30... Re8
{[%clk 0:00:02]} 31. f4 {[%clk 0:00:37.1]} 31... Ne7 {[%clk 0:00:01.7]} 32. Bxe7
{[%clk 0:00:36.5]} 32... Ra8 {[%clk 0:00:02.6]} 33. Qf6 {[%clk 0:00:35.7]} 33...
Ra6 {[%clk 0:00:02.8]} 34. e6 {[%clk 0:00:35.5]} 34... Rxe6 {[%clk 0:00:02]} 35.
Rxe6 {[%clk 0:00:34.8]} 1-0

[Event "Early-Titled-Tuesday-Blitz-September-05-2023"]
[Site "Chess.com"]
[Date "2023.09.05"]
[Round "2"]
[White "NowInChess"]
[Black "infinitegiantkiller"]
[Result "0-1"]
[WhiteElo "2267"]
[BlackElo "2489"]
[TimeControl "180+1"]
[EndTime "8:17:12 PDT"]
[Termination "infinitegiantkiller won on time"]

1. e4 {[%clk 0:03:00.9]} 1... g6 {[%clk 0:02:56.2]} 2. Nc3 {[%clk 0:02:57.3]}
2... Bg7 {[%clk 0:02:57.1]} 3. f4 {[%clk 0:02:57.5]} 3... c6 {[%clk 0:02:56.2]}
4. Bc4 {[%clk 0:02:49]} 4... e6 {[%clk 0:02:54.2]} 5. Bb3 {[%clk 0:02:38.4]}
5... d5 {[%clk 0:02:53.4]} 6. d3 {[%clk 0:02:35.2]} 6... Ne7 {[%clk 0:02:51.5]}
7. Nf3 {[%clk 0:02:30.4]} 7... Nd7 {[%clk 0:02:42.4]} 8. O-O {[%clk 0:02:08.9]}
8... O-O {[%clk 0:02:42.1]} 9. a4 {[%clk 0:01:58.8]} 9... a5 {[%clk 0:02:41.7]}
10. f5 {[%clk 0:01:38.7]} 10... exf5 {[%clk 0:02:32.1]} 11. exd5 {[%clk
0:01:37.3]} 11... cxd5 {[%clk 0:02:26]} 12. Nxd5 {[%clk 0:01:33.3]} 12... Nc5
{[%clk 0:02:25.3]} 13. Nxe7+ {[%clk 0:01:22.4]} 13... Qxe7 {[%clk 0:02:26.2]}
14. Bg5 {[%clk 0:01:14.8]} 14... Qc7 {[%clk 0:02:14.5]} 15. Bc4 {[%clk
0:01:12.8]} 15... Be6 {[%clk 0:01:59.1]} 16. Bxe6 {[%clk 0:01:06.8]} 16... Nxe6
{[%clk 0:02:00]} 17. Rb1 {[%clk 0:00:47.8]} 17... Rac8 {[%clk 0:01:54.8]} 18. c3
{[%clk 0:00:44.6]} 18... Nxg5 {[%clk 0:01:51.7]} 19. Nxg5 {[%clk 0:00:44.2]}
19... Rfd8 {[%clk 0:01:51.7]} 20. Qf3 {[%clk 0:00:39.5]} 20... Qd7 {[%clk
0:01:43.9]} 21. Rbd1 {[%clk 0:00:25.2]} 21... h6 {[%clk 0:01:43.5]} 22. Nh3
{[%clk 0:00:22.9]} 22... b5 {[%clk 0:01:30.8]} 23. axb5 {[%clk 0:00:19.9]} 23...
Qxb5 {[%clk 0:01:31.7]} 24. Rf2 {[%clk 0:00:16.3]} 24... Rd7 {[%clk 0:01:28.7]}
25. g4 {[%clk 0:00:08.9]} 25... fxg4 {[%clk 0:01:27.8]} 26. Qxg4 {[%clk
0:00:09.8]} 26... Rcd8 {[%clk 0:01:26.3]} 27. Qf3 {[%clk 0:00:05.6]} 27... f5
{[%clk 0:01:14.3]} 28. d4 {[%clk 0:00:05.4]} 28... a4 {[%clk 0:01:12.2]} 29. Rg2
{[%clk 0:00:04.8]} 29... Kh7 {[%clk 0:01:12.2]} 30. Nf4 {[%clk 0:00:04.2]} 30...
g5 {[%clk 0:01:12.1]} 31. Ne6 {[%clk 0:00:03.7]} 31... Re8 {[%clk 0:01:07.4]}
32. d5 {[%clk 0:00:03.6]} 32... Kg6 {[%clk 0:00:52.8]} 33. Nxg7 {[%clk 0:00:02]}
33... Rxg7 {[%clk 0:00:49.7]} 34. d6 {[%clk 0:00:02.1]} 34... Rd7 {[%clk
0:00:47.4]} 35. Rgd2 {[%clk 0:00:01.9]} 35... Re5 {[%clk 0:00:40.2]} 36. Qf2
{[%clk 0:00:01.9]} 36... f4 {[%clk 0:00:39.1]} 37. Qf1 {[%clk 0:00:01.4]} 37...
Kf6 {[%clk 0:00:28.2]} 0-1

[Event "Early-Titled-Tuesday-Blitz-September-05-2023"]
[Site "Chess.com"]
[Date "2023.09.05"]
[Round "2"]
[White "Amirreza_p"]
[Black "platy3"]
[Result "0-1"]
[WhiteElo "2605"]
[BlackElo "2919"]
[TimeControl "180+1"]
[EndTime "8:17:14 PDT"]
[Termination "platy3 won on time"]

1. Nf3 {[%clk 0:03:00.9]} 1... Nf6 {[%clk 0:02:59]} 2. c4 {[%clk 0:02:59.9]}
2... b6 {[%clk 0:02:57.4]} 3. g3 {[%clk 0:02:58.8]} 3... Bb7 {[%clk 0:02:57.5]}
4. Bg2 {[%clk 0:02:59.1]} 4... g6 {[%clk 0:02:57.4]} 5. b3 {[%clk 0:02:58.4]}
5... Bg7 {[%clk 0:02:57.1]} 6. Bb2 {[%clk 0:02:59]} 6... c5 {[%clk 0:02:57.6]}
7. O-O {[%clk 0:02:59.1]} 7... O-O {[%clk 0:02:57.2]} 8. d4 {[%clk 0:02:58.1]}
8... cxd4 {[%clk 0:02:55.8]} 9. Qxd4 {[%clk 0:02:59]} 9... d6 {[%clk 0:02:54.6]}
10. Nc3 {[%clk 0:02:29.5]} 10... Nbd7 {[%clk 0:02:53.7]} 11. Rac1 {[%clk
0:02:26.8]} 11... Rc8 {[%clk 0:02:51.2]} 12. Rfd1 {[%clk 0:02:22.9]} 12... a6
{[%clk 0:02:50.7]} 13. h3 {[%clk 0:02:14.3]} 13... Re8 {[%clk 0:02:49.7]} 14.
Qd2 {[%clk 0:02:02.1]} 14... Nc5 {[%clk 0:02:44]} 15. Nd4 {[%clk 0:01:50.4]}
15... Bxg2 {[%clk 0:02:39.4]} 16. Kxg2 {[%clk 0:01:51.3]} 16... Qd7 {[%clk
0:02:39.9]} 17. Re1 {[%clk 0:01:46.3]} 17... Qb7+ {[%clk 0:02:35.7]} 18. Nf3
{[%clk 0:01:45.1]} 18... b5 {[%clk 0:02:32.4]} 19. Nd5 {[%clk 0:01:34]} 19...
Nce4 {[%clk 0:02:14.8]} 20. Nxf6+ {[%clk 0:00:47.6]} 20... Bxf6 {[%clk
0:02:10.4]} 21. Qc2 {[%clk 0:00:45.8]} 21... Bxb2 {[%clk 0:02:03.7]} 22. Qxb2
{[%clk 0:00:46.7]} 22... bxc4 {[%clk 0:02:04.1]} 23. Qd4 {[%clk 0:00:47]} 23...
cxb3 {[%clk 0:02:00.6]} 24. axb3 {[%clk 0:00:47.9]} 24... Nc5 {[%clk 0:02:00.3]}
25. Rb1 {[%clk 0:00:40.2]} 25... a5 {[%clk 0:01:54.7]} 26. b4 {[%clk 0:00:39.3]}
26... Ne6 {[%clk 0:01:52.5]} 27. Qd2 {[%clk 0:00:36.3]} 27... a4 {[%clk
0:01:51.2]} 28. Qa2 {[%clk 0:00:30.2]} 28... Ra8 {[%clk 0:01:45.6]} 29. Qa3
{[%clk 0:00:29.4]} 29... Qb5 {[%clk 0:01:43.9]} 30. e3 {[%clk 0:00:26.3]} 30...
Rec8 {[%clk 0:01:42.1]} 31. Rec1 {[%clk 0:00:26.1]} 31... Rab8 {[%clk
0:01:30.6]} 32. Rxc8+ {[%clk 0:00:14.3]} 32... Rxc8 {[%clk 0:01:31.5]} 33. Ra1
{[%clk 0:00:14.9]} 33... Ra8 {[%clk 0:01:27.5]} 34. Rc1 {[%clk 0:00:15]} 34...
Rb8 {[%clk 0:01:25.8]} 35. Rb1 {[%clk 0:00:14.2]} 35... h5 {[%clk 0:00:48.3]}
36. h4 {[%clk 0:00:12.9]} 36... Nd8 {[%clk 0:00:46.5]} 37. Rb2 {[%clk
0:00:13.1]} 37... Nc6 {[%clk 0:00:46.3]} 38. Nd4 {[%clk 0:00:06.8]} 38... Nxd4
{[%clk 0:00:46]} 39. exd4 {[%clk 0:00:07.7]} 39... Qd5+ {[%clk 0:00:46.5]} 40.
Kh2 {[%clk 0:00:08.2]} 40... Qxd4 {[%clk 0:00:46.6]} 41. Rb1 {[%clk 0:00:08.8]}
41... Qxf2+ {[%clk 0:00:44.7]} 0-1